[Event "Titled Tuesday Blitz April 12 Late 2022"]
[White "Senthilkumar, Pranav"]
[Black "Mirzoev, Azer"]
[WhiteFideId "2083477"]
[BlackFideId "13400304"]
[WhiteElo "2399"]
[BlackElo "2525"]
[Result "0-1"]
[Round "11"]
[TimeControl "180+1"]
[Date "2022.04.13"]
[WhiteClock "0:01:26"]
[BlackClock "0:02:03"]

1. Nf3 {[%clk 0:03:00]}  c5 {[%clk 0:02:58]} 2. e4 {[%clk 0:03:01]}  d6 {[%clk 0:02:58]} 3. d4 {[%clk 0:03:01]}  cxd4 {[%clk 0:02:58]} 4. Nxd4 {[%clk 0:03:02]}  Nf6 {[%clk 0:02:58]} 5. Nc3 {[%clk 0:03:01]}  a6 {[%clk 0:02:59]} 6. Be3 {[%clk 0:03:01]}  b5 {[%clk 0:02:59]} 7. Bd3 {[%clk 0:02:57]}  Bb7 {[%clk 0:02:59]} 8. a3 {[%clk 0:02:56]}  Nbd7 {[%clk 0:02:59]} 9. O-O {[%clk 0:02:56]}  e6 {[%clk 0:02:56]} 10. Nce2 {[%clk 0:02:53]}  Nxe4 {[%clk 0:02:53]} 11. Ng3 {[%clk 0:02:48]}  Nxg3 {[%clk 0:02:52]} 12. fxg3 {[%clk 0:02:48]}  Ne5 {[%clk 0:02:49]} 13. Bf4 {[%clk 0:02:30]}  Be7 {[%clk 0:02:44]} 14. Bxe5 {[%clk 0:02:29]}  dxe5 {[%clk 0:02:43]} 15. Nxe6 {[%clk 0:02:25]}  Qb6+ {[%clk 0:02:42]} 16. Kh1 {[%clk 0:02:22]}  Qxe6 {[%clk 0:02:41]} 17. Bf5 {[%clk 0:02:18]}  Qd5 {[%clk 0:02:36]} 18. Qe2 {[%clk 0:02:10]}  O-O {[%clk 0:02:35]} 19. Rad1 {[%clk 0:02:09]}  Qc6 {[%clk 0:02:24]} 20. Rd7 {[%clk 0:01:59]}  Bf6 {[%clk 0:02:23]} 21. Rfd1 {[%clk 0:01:55]}  Rad8 {[%clk 0:02:17]} 22. R1d6 {[%clk 0:01:55]}  Qxd6 {[%clk 0:02:12]} 23. Rxd6 {[%clk 0:01:53]}  Rxd6 {[%clk 0:02:13]} 24. h3 {[%clk 0:01:49]}  Rfd8 {[%clk 0:02:11]} 25. Be4 {[%clk 0:01:42]}  Bxe4 {[%clk 0:02:10]} 26. Qxe4 {[%clk 0:01:42]}  g6 {[%clk 0:02:10]} 27. g4 {[%clk 0:01:40]}  h6 {[%clk 0:02:10]} 28. Qb7 {[%clk 0:01:38]}  Kg7 {[%clk 0:02:10]} 29. b3 {[%clk 0:01:33]}  Re6 {[%clk 0:02:07]} 30. Qe4 {[%clk 0:01:27]}  Rd4 {[%clk 0:02:06]} 31. Qe2 {[%clk 0:01:26]}  e4 {[%clk 0:02:05]} 32. c3 {[%clk 0:01:27]}  Rd3 {[%clk 0:02:04]} 33. c4 {[%clk 0:01:26]}  Rxb3 {[%clk 0:02:03]} 34. c5 {[%clk 0:01:26]}  Rc3 {[%clk 0:02:03]} 0-1


[Site "https://www.chess.com"]

[Event "Titled Tuesday Blitz April 12 Late 2022"]
[White "Wagner, Dennis"]
[Black "Bryakin, Mikhail"]
[WhiteFideId "24650684"]
[BlackFideId "4165314"]
[WhiteElo "2355"]
[BlackElo "2417"]
[Result "1-0"]
[Round "11"]
[TimeControl "180+1"]
[Date "2022.04.12"]
[WhiteClock "0:00:09"]
[BlackClock "0:00:08"]

1. d4 {[%clk 0:03:00]}  Nf6 {[%clk 0:03:00]} 2. Nf3 {[%clk 0:03:00]}  b5 {[%clk 0:02:56]} 3. e4 {[%clk 0:02:52]}  Nxe4 {[%clk 0:02:55]} 4. Bxb5 {[%clk 0:02:53]}  Bb7 {[%clk 0:02:55]} 5. O-O {[%clk 0:02:53]}  g6 {[%clk 0:02:56]} 6. Re1 {[%clk 0:02:53]}  Bg7 {[%clk 0:02:55]} 7. Bd3 {[%clk 0:02:51]}  Nf6 {[%clk 0:02:54]} 8. c3 {[%clk 0:02:31]}  O-O {[%clk 0:02:51]} 9. Bf4 {[%clk 0:02:32]}  d6 {[%clk 0:02:51]} 10. Nbd2 {[%clk 0:02:32]}  Nbd7 {[%clk 0:02:51]} 11. Qe2 {[%clk 0:02:24]}  Re8 {[%clk 0:02:50]} 12. Ba6 {[%clk 0:02:24]}  Qc8 {[%clk 0:02:50]} 13. Bxb7 {[%clk 0:02:22]}  Qxb7 {[%clk 0:02:51]} 14. Nc4 {[%clk 0:02:10]}  c5 {[%clk 0:02:48]} 15. Bg3 {[%clk 0:02:00]}  cxd4 {[%clk 0:02:36]} 16. Nxd4 {[%clk 0:02:01]}  Rac8 {[%clk 0:02:26]} 17. Na5 {[%clk 0:01:21]}  Qb6 {[%clk 0:02:22]} 18. Qb5 {[%clk 0:01:19]}  e5 {[%clk 0:02:17]} 19. Nc4 {[%clk 0:01:12]}  Qxb5 {[%clk 0:02:09]} 20. Nxb5 {[%clk 0:01:13]}  Rxc4 {[%clk 0:02:10]} 21. Nxd6 {[%clk 0:01:13]}  Rcc8 {[%clk 0:02:06]} 22. Nxc8 {[%clk 0:01:10]}  Rxc8 {[%clk 0:02:06]} 23. Bxe5 {[%clk 0:01:11]}  Nxe5 {[%clk 0:01:53]} 24. Rxe5 {[%clk 0:01:12]}  Rc7 {[%clk 0:01:53]} 25. Rd1 {[%clk 0:01:11]}  h5 {[%clk 0:01:49]} 26. h3 {[%clk 0:01:08]}  Bh6 {[%clk 0:01:46]} 27. a4 {[%clk 0:01:02]}  Bf4 {[%clk 0:01:39]} 28. Rb5 {[%clk 0:01:01]}  h4 {[%clk 0:01:34]} 29. Rd4 {[%clk 0:00:58]}  g5 {[%clk 0:01:16]} 30. Rd8+ {[%clk 0:00:57]}  Kg7 {[%clk 0:01:15]} 31. g3 {[%clk 0:00:57]}  hxg3 {[%clk 0:01:09]} 32. fxg3 {[%clk 0:00:58]}  Bc1 {[%clk 0:01:08]} 33. Rd1 {[%clk 0:00:44]}  Be3+ {[%clk 0:01:06]} 34. Kg2 {[%clk 0:00:45]}  Kg6 {[%clk 0:00:59]} 35. Rd6 {[%clk 0:00:42]}  Bc1 {[%clk 0:00:51]} 36. Kf3 {[%clk 0:00:20]}  g4+ {[%clk 0:00:46]} 37. hxg4 {[%clk 0:00:20]}  Re7 {[%clk 0:00:42]} 38. Rf5 {[%clk 0:00:19]}  Bg5 {[%clk 0:00:41]} 39. Ra6 {[%clk 0:00:17]}  Re3+ {[%clk 0:00:38]} 40. Kf2 {[%clk 0:00:18]}  Rd3 {[%clk 0:00:39]} 41. Raa5 {[%clk 0:00:14]}  Ne4+ {[%clk 0:00:35]} 42. Ke2 {[%clk 0:00:12]}  Re3+ {[%clk 0:00:25]} 43. Kd1 {[%clk 0:00:13]}  f6 {[%clk 0:00:23]} 44. Rxa7 {[%clk 0:00:11]}  Rxg3 {[%clk 0:00:23]} 45. Rd5 {[%clk 0:00:08]}  Rxg4 {[%clk 0:00:19]} 46. Kc2 {[%clk 0:00:08]}  Rg2+ {[%clk 0:00:19]} 47. Kb3 {[%clk 0:00:08]}  Nd2+ {[%clk 0:00:19]} 48. Ka2 {[%clk 0:00:08]}  Ne4 {[%clk 0:00:19]} 49. Rd8 {[%clk 0:00:08]}  Nxc3+ {[%clk 0:00:19]} 50. Kb3 {[%clk 0:00:09]}  Ne4 {[%clk 0:00:20]} 51. Rg8+ {[%clk 0:00:08]}  Kf5 {[%clk 0:00:20]} 52. Rb8 {[%clk 0:00:09]}  Be3 {[%clk 0:00:19]} 53. Rb5+ {[%clk 0:00:09]}  Kf4 {[%clk 0:00:19]} 54. Ra8 {[%clk 0:00:10]}  f5 {[%clk 0:00:19]} 55. Rf8 {[%clk 0:00:08]}  Nd6 {[%clk 0:00:18]} 56. Rd5 {[%clk 0:00:07]}  Rd2 {[%clk 0:00:18]} 57. Rxd2 {[%clk 0:00:07]}  Bxd2 {[%clk 0:00:19]} 58. Rd8 {[%clk 0:00:07]}  Ke5 {[%clk 0:00:19]} 59. Kc2 {[%clk 0:00:07]}  Bb4 {[%clk 0:00:19]} 60. Rb8 {[%clk 0:00:07]}  Be1 {[%clk 0:00:19]} 61. b4 {[%clk 0:00:07]}  f4 {[%clk 0:00:19]} 62. Kd1 {[%clk 0:00:07]}  Bc3 {[%clk 0:00:19]} 63. Ke2 {[%clk 0:00:07]}  Ke4 {[%clk 0:00:18]} 64. a5 {[%clk 0:00:07]}  f3+ {[%clk 0:00:19]} 65. Kf1 {[%clk 0:00:07]}  Bd4 {[%clk 0:00:16]} 66. a6 {[%clk 0:00:08]}  Kd5 {[%clk 0:00:16]} 67. b5 {[%clk 0:00:08]}  Nc4 {[%clk 0:00:13]} 68. Rd8+ {[%clk 0:00:07]}  Kc5 {[%clk 0:00:13]} 69. a7 {[%clk 0:00:06]}  Nb6 {[%clk 0:00:13]} 70. Rb8 {[%clk 0:00:06]}  f2 {[%clk 0:00:05]} 71. Rxb6 {[%clk 0:00:05]}  Kxb6 {[%clk 0:00:05]} 72. a8=Q {[%clk 0:00:06]}  Kxb5 {[%clk 0:00:06]} 73. Qe4 {[%clk 0:00:06]}  Kc4 {[%clk 0:00:07]} 74. Qe2+ {[%clk 0:00:06]}  Kc5 {[%clk 0:00:08]} 75. Qf3 {[%clk 0:00:07]}  Kc4 {[%clk 0:00:07]} 76. Ke2 {[%clk 0:00:08]}  Bc5 {[%clk 0:00:08]} 77. Qf4+ {[%clk 0:00:07]}  Kd5 {[%clk 0:00:09]} 78. Kd3 {[%clk 0:00:08]}  Bb6 {[%clk 0:00:09]} 79. Qf5+ {[%clk 0:00:08]}  Kc6 {[%clk 0:00:10]} 80. Kc4 {[%clk 0:00:08]}  Kb7 {[%clk 0:00:08]} 81. Qf6 {[%clk 0:00:08]}  Be3 {[%clk 0:00:08]} 82. Kb5 {[%clk 0:00:08]}  Kc7 {[%clk 0:00:09]} 83. Qe7+ {[%clk 0:00:08]}  Kb8 {[%clk 0:00:07]} 84. Kc6 {[%clk 0:00:09]}  Ka8 {[%clk 0:00:08]} 85. Qb7# {[%clk 0:00:09]} 1-0


[Site "https://www.chess.com"]

[Event "Titled Tuesday Blitz April 12 Late 2022"]
[White "Winkels, Marcel"]
[Black "Novikova, Galina"]
[WhiteFideId "1003887"]
[BlackFideId "4157095"]
[WhiteElo "1900"]
[BlackElo "1863"]
[Result "0-1"]
[Round "11"]
[TimeControl "180+1"]
[Date "2022.04.13"]
[WhiteClock "0:00:01"]
[BlackClock "0:00:54"]

1. e4 {[%clk 0:03:00]}  e6 {[%clk 0:02:59]} 2. d4 {[%clk 0:02:59]}  d5 {[%clk 0:03:00]} 3. Nc3 {[%clk 0:02:59]}  Bb4 {[%clk 0:03:00]} 4. Qd3 {[%clk 0:02:58]}  dxe4 {[%clk 0:02:55]} 5. Qxe4 {[%clk 0:02:58]}  Nf6 {[%clk 0:02:55]} 6. Qh4 {[%clk 0:02:56]}  Nc6 {[%clk 0:02:54]} 7. Nf3 {[%clk 0:02:54]}  h6 {[%clk 0:02:48]} 8. Bb5 {[%clk 0:02:51]}  Bd7 {[%clk 0:02:47]} 9. O-O {[%clk 0:02:44]}  Qe7 {[%clk 0:02:46]} 10. a3 {[%clk 0:02:30]}  Bd6 {[%clk 0:02:45]} 11. Bxc6 {[%clk 0:02:13]}  Bxc6 {[%clk 0:02:45]} 12. Ne5 {[%clk 0:02:13]}  Bd7 {[%clk 0:02:33]} 13. Ne4 {[%clk 0:01:50]}  Bxe5 {[%clk 0:02:28]} 14. dxe5 {[%clk 0:01:49]}  Nxe4 {[%clk 0:02:29]} 15. Qxe4 {[%clk 0:01:48]}  Bc6 {[%clk 0:02:29]} 16. Qg4 {[%clk 0:01:42]}  O-O-O {[%clk 0:02:28]} 17. Be3 {[%clk 0:01:37]}  Kb8 {[%clk 0:02:27]} 18. Rad1 {[%clk 0:01:34]}  g5 {[%clk 0:02:26]} 19. Qc4 {[%clk 0:01:20]}  Rxd1 {[%clk 0:02:06]} 20. Rxd1 {[%clk 0:01:19]}  Rd8 {[%clk 0:02:07]} 21. Rxd8+ {[%clk 0:01:04]}  Qxd8 {[%clk 0:02:08]} 22. Qd4 {[%clk 0:01:03]}  Qxd4 {[%clk 0:01:25]} 23. Bxd4 {[%clk 0:01:03]}  Kc8 {[%clk 0:01:25]} 24. f3 {[%clk 0:00:54]}  Kd7 {[%clk 0:01:24]} 25. h3 {[%clk 0:00:52]}  Bb5 {[%clk 0:01:24]} 26. Be3 {[%clk 0:00:49]}  Kc6 {[%clk 0:01:21]} 27. h4 {[%clk 0:00:49]}  gxh4 {[%clk 0:01:18]} 28. Bxh6 {[%clk 0:00:49]}  Kd5 {[%clk 0:01:18]} 29. f4 {[%clk 0:00:44]}  Ke4 {[%clk 0:01:11]} 30. Kh2 {[%clk 0:00:43]}  Be2 {[%clk 0:01:09]} 31. Kh3 {[%clk 0:00:40]}  Bd1 {[%clk 0:01:09]} 32. c3 {[%clk 0:00:38]}  Kd3 {[%clk 0:01:10]} 33. Kxh4 {[%clk 0:00:37]}  Kc2 {[%clk 0:01:10]} 34. Kg5 {[%clk 0:00:37]}  Kxb2 {[%clk 0:01:09]} 35. g4 {[%clk 0:00:25]}  Kxc3 {[%clk 0:01:05]} 36. f5 {[%clk 0:00:23]}  c5 {[%clk 0:01:01]} 37. Kf4 {[%clk 0:00:18]}  Kb3 {[%clk 0:00:57]} 38. Bf8 {[%clk 0:00:12]}  c4 {[%clk 0:00:54]} 39. fxe6 {[%clk 0:00:10]}  fxe6 {[%clk 0:00:54]} 40. g5 {[%clk 0:00:11]}  Bc2 {[%clk 0:00:54]} 41. Kg4 {[%clk 0:00:09]}  Bg6 {[%clk 0:00:54]} 42. Kf4 {[%clk 0:00:07]}  c3 {[%clk 0:00:54]} 43. Ke3 {[%clk 0:00:01]}  c2 {[%clk 0:00:53]} 44. Kd2 {[%clk 0:00:01]}  Kb2 {[%clk 0:00:54]} 0-1


[Site "https://www.chess.com"]

[Event "Titled Tuesday Blitz April 12 Late 2022"]
[White "Xu, Yi"]
[Black "Dimakiling, Oliver"]
[WhiteFideId "8605564"]
[BlackFideId "5202248"]
[WhiteElo "2471"]
[BlackElo "2426"]
[Result "1-0"]
[Round "11"]
[TimeControl "180+1"]
[Date "2022.04.12"]
[WhiteClock "0:00:03"]
[BlackClock "0:00:20"]

1. e4 {[%clk 0:03:00]}  g6 {[%clk 0:02:59]} 2. d4 {[%clk 0:03:00]}  Bg7 {[%clk 0:02:59]} 3. Nc3 {[%clk 0:03:00]}  d6 {[%clk 0:03:00]} 4. f4 {[%clk 0:03:00]}  a6 {[%clk 0:03:00]} 5. Nf3 {[%clk 0:02:59]}  Bg4 {[%clk 0:03:00]} 6. Be2 {[%clk 0:02:46]}  Nc6 {[%clk 0:02:59]} 7. Be3 {[%clk 0:02:44]}  e5 {[%clk 0:02:59]} 8. fxe5 {[%clk 0:02:41]}  Bxf3 {[%clk 0:02:58]} 9. Bxf3 {[%clk 0:02:31]}  dxe5 {[%clk 0:02:59]} 10. d5 {[%clk 0:02:32]}  Nd4 {[%clk 0:02:59]} 11. O-O {[%clk 0:02:32]}  Ne7 {[%clk 0:02:58]} 12. Ne2 {[%clk 0:02:25]}  Nxf3+ {[%clk 0:02:58]} 13. Rxf3 {[%clk 0:02:25]}  O-O {[%clk 0:02:57]} 14. c4 {[%clk 0:02:24]}  b6 {[%clk 0:02:56]} 15. Nc3 {[%clk 0:02:19]}  f5 {[%clk 0:02:55]} 16. Qe2 {[%clk 0:02:10]}  f4 {[%clk 0:02:55]} 17. Bf2 {[%clk 0:02:10]}  g5 {[%clk 0:02:55]} 18. Rd3 {[%clk 0:02:10]}  Rf6 {[%clk 0:02:52]} 19. c5 {[%clk 0:02:09]}  bxc5 {[%clk 0:02:51]} 20. Bxc5 {[%clk 0:02:09]}  Nc8 {[%clk 0:02:51]} 21. Qg4 {[%clk 0:01:49]}  Rg6 {[%clk 0:02:48]} 22. Rad1 {[%clk 0:01:43]}  Nd6 {[%clk 0:02:48]} 23. Bxd6 {[%clk 0:01:41]}  cxd6 {[%clk 0:02:47]} 24. Na4 {[%clk 0:01:39]}  Qa5 {[%clk 0:02:45]} 25. b3 {[%clk 0:01:38]}  Qb4 {[%clk 0:02:38]} 26. Qe2 {[%clk 0:01:19]}  g4 {[%clk 0:02:37]} 27. Rc3 {[%clk 0:01:14]}  f3 {[%clk 0:02:33]} 28. Qc4 {[%clk 0:01:08]}  Qa3 {[%clk 0:02:21]} 29. Rc2 {[%clk 0:01:07]}  Rf8 {[%clk 0:02:19]} 30. g3 {[%clk 0:01:03]}  Bh6 {[%clk 0:02:16]} 31. Kf2 {[%clk 0:01:03]}  Bg5 {[%clk 0:02:06]} 32. Rh1 {[%clk 0:01:00]}  h5 {[%clk 0:01:59]} 33. h4 {[%clk 0:00:58]}  Bd8 {[%clk 0:01:54]} 34. Rd1 {[%clk 0:00:51]}  Rg7 {[%clk 0:01:49]} 35. Qxa6 {[%clk 0:00:39]}  Qb4 {[%clk 0:01:48]} 36. Rc4 {[%clk 0:00:38]}  Qb8 {[%clk 0:01:48]} 37. Rc8 {[%clk 0:00:30]}  Qb4 {[%clk 0:01:47]} 38. Rc4 {[%clk 0:00:30]}  Qa3 {[%clk 0:01:47]} 39. Rc2 {[%clk 0:00:28]}  Rc7 {[%clk 0:01:41]} 40. Qd3 {[%clk 0:00:22]}  Qb4 {[%clk 0:01:37]} 41. Rxc7 {[%clk 0:00:19]}  Bxc7 {[%clk 0:01:37]} 42. Rc1 {[%clk 0:00:18]}  Bb6+ {[%clk 0:01:37]} 43. Kf1 {[%clk 0:00:18]}  f2 {[%clk 0:01:35]} 44. Qc4 {[%clk 0:00:12]}  Qd2 {[%clk 0:01:35]} 45. Nxb6 {[%clk 0:00:11]}  Qe3 {[%clk 0:01:34]} 46. Nd7 {[%clk 0:00:07]}  Qxg3 {[%clk 0:01:33]} 47. Nxf8 {[%clk 0:00:07]}  Qg1+ {[%clk 0:01:00]} 48. Ke2 {[%clk 0:00:07]}  Qg2 {[%clk 0:01:00]} 49. Rf1 {[%clk 0:00:07]}  Qf3+ {[%clk 0:01:00]} 50. Kd2 {[%clk 0:00:07]}  g3 {[%clk 0:01:00]} 51. Qe2 {[%clk 0:00:06]}  Qxf8 {[%clk 0:00:55]} 52. Qe3 {[%clk 0:00:05]}  Qg7 {[%clk 0:00:44]} 53. Ke2 {[%clk 0:00:05]}  Qg4+ {[%clk 0:00:44]} 54. Qf3 {[%clk 0:00:04]}  Qxh4 {[%clk 0:00:44]} 55. Qg2 {[%clk 0:00:03]}  Kh7 {[%clk 0:00:40]} 56. a4 {[%clk 0:00:02]}  Qf4 {[%clk 0:00:37]} 57. a5 {[%clk 0:00:01]}  h4 {[%clk 0:00:37]} 58. a6 {[%clk 0:00:02]}  Qg4+ {[%clk 0:00:37]} 59. Qf3 {[%clk 0:00:02]}  Qc8 {[%clk 0:00:30]} 60. Rh1 {[%clk 0:00:03]}  Qc2+ {[%clk 0:00:28]} 61. Kf1 {[%clk 0:00:03]}  Qb1+ {[%clk 0:00:21]} 62. Kg2 {[%clk 0:00:03]}  f1=Q+ {[%clk 0:00:19]} 63. Qxf1 {[%clk 0:00:03]}  Qa2+ {[%clk 0:00:20]} 64. Kh3 {[%clk 0:00:03]} 1-0


[Site "https://www.chess.com"]

[Event "Titled Tuesday Blitz April 12 Late 2022"]
[White "Zhigalko, Sergei"]
[Black "Dubov, Daniil"]
[WhiteFideId "13502956"]
[BlackFideId "24126055"]
[WhiteElo "2662"]
[BlackElo "2791"]
[Result "0-1"]
[Round "11"]
[TimeControl "180+1"]
[Date "2022.04.12"]
[WhiteClock "0:00:01"]
[BlackClock "0:00:14"]

1. e4 {[%clk 0:03:00]}  c5 {[%clk 0:02:59]} 2. Nf3 {[%clk 0:03:01]}  d6 {[%clk 0:02:58]} 3. d4 {[%clk 0:02:59]}  cxd4 {[%clk 0:02:59]} 4. Qxd4 {[%clk 0:03:00]}  Nc6 {[%clk 0:02:52]} 5. Bb5 {[%clk 0:03:00]}  Bd7 {[%clk 0:02:51]} 6. Bxc6 {[%clk 0:03:00]}  Bxc6 {[%clk 0:02:52]} 7. Nc3 {[%clk 0:03:01]}  h6 {[%clk 0:02:51]} 8. Qd3 {[%clk 0:03:01]}  e5 {[%clk 0:02:48]} 9. Nd2 {[%clk 0:03:01]}  Nf6 {[%clk 0:02:46]} 10. Nc4 {[%clk 0:03:00]}  Be7 {[%clk 0:02:38]} 11. Ne3 {[%clk 0:03:00]}  O-O {[%clk 0:02:33]} 12. O-O {[%clk 0:02:59]}  Re8 {[%clk 0:02:32]} 13. Nf5 {[%clk 0:02:43]}  Bf8 {[%clk 0:02:30]} 14. Rd1 {[%clk 0:02:40]}  Qd7 {[%clk 0:02:22]} 15. Qf3 {[%clk 0:01:54]}  Qe6 {[%clk 0:01:33]} 16. a4 {[%clk 0:01:25]}  Rad8 {[%clk 0:01:24]} 17. Ne3 {[%clk 0:01:24]}  Nxe4 {[%clk 0:01:14]} 18. Nxe4 {[%clk 0:01:19]}  d5 {[%clk 0:01:14]} 19. Ng3 {[%clk 0:00:37]}  d4 {[%clk 0:01:13]} 20. Qf5 {[%clk 0:00:30]}  dxe3 {[%clk 0:01:12]} 21. Bxe3 {[%clk 0:00:31]}  Qxf5 {[%clk 0:01:08]} 22. Nxf5 {[%clk 0:00:31]}  Be4 {[%clk 0:00:40]} 23. Rxd8 {[%clk 0:00:29]}  Rxd8 {[%clk 0:00:39]} 24. Ng3 {[%clk 0:00:30]}  Bxc2 {[%clk 0:00:39]} 25. Bxa7 {[%clk 0:00:31]}  Ra8 {[%clk 0:00:38]} 26. Bb6 {[%clk 0:00:26]}  Rxa4 {[%clk 0:00:37]} 27. Rxa4 {[%clk 0:00:27]}  Bxa4 {[%clk 0:00:37]} 28. f3 {[%clk 0:00:21]}  f6 {[%clk 0:00:33]} 29. Kf2 {[%clk 0:00:20]}  Kf7 {[%clk 0:00:33]} 30. Ne4 {[%clk 0:00:21]}  Bc6 {[%clk 0:00:32]} 31. Nc5 {[%clk 0:00:19]}  Bd6 {[%clk 0:00:19]} 32. Ke3 {[%clk 0:00:17]}  f5 {[%clk 0:00:19]} 33. Nd3 {[%clk 0:00:08]}  Ke6 {[%clk 0:00:18]} 34. Bc5 {[%clk 0:00:08]}  Bxc5+ {[%clk 0:00:16]} 35. Nxc5+ {[%clk 0:00:09]}  Kd5 {[%clk 0:00:15]} 36. Nd3 {[%clk 0:00:10]}  f4+ {[%clk 0:00:15]} 37. Kd2 {[%clk 0:00:09]}  Kd4 {[%clk 0:00:15]} 38. Nb4 {[%clk 0:00:06]}  e4 {[%clk 0:00:15]} 39. Nc2+ {[%clk 0:00:01]}  Kc4 {[%clk 0:00:15]} 40. fxe4 {[%clk 0:00:01]}  Bxe4 {[%clk 0:00:16]} 41. Ne1 {[%clk 0:00:02]}  Kb3 {[%clk 0:00:16]} 42. Kc1 {[%clk 0:00:02]}  g5 {[%clk 0:00:15]} 43. h3 {[%clk 0:00:02]}  b6 {[%clk 0:00:14]} 44. Kd2 {[%clk 0:00:01]}  Kxb2 {[%clk 0:00:14]} 0-1


[Site "https://www.chess.com"]

[Event "Titled Tuesday Blitz April 12 Late 2022"]
[White "Zhou, Qiyu"]
[Black "Maranhao,Jose Renato Ruiz"]
[WhiteFideId "505161"]
[BlackFideId "2135175"]
[WhiteElo "1925"]
[BlackElo "1970"]
[Result "0-1"]
[Round "11"]
[TimeControl "180+1"]
[Date "2022.04.13"]
[WhiteClock "0:00:02"]
[BlackClock "0:00:04"]

1. e4 {[%clk 0:03:00]}  c6 {[%clk 0:02:59]} 2. d4 {[%clk 0:03:00]}  d5 {[%clk 0:02:59]} 3. e5 {[%clk 0:02:59]}  Bf5 {[%clk 0:02:58]} 4. Nf3 {[%clk 0:03:00]}  e6 {[%clk 0:02:56]} 5. Be2 {[%clk 0:02:54]}  Ne7 {[%clk 0:02:52]} 6. O-O {[%clk 0:02:52]}  h6 {[%clk 0:02:39]} 7. a4 {[%clk 0:02:53]}  a5 {[%clk 0:02:39]} 8. Nbd2 {[%clk 0:02:52]}  Nd7 {[%clk 0:02:38]} 9. c4 {[%clk 0:02:51]}  Bh7 {[%clk 0:02:38]} 10. b3 {[%clk 0:02:51]}  Ng6 {[%clk 0:02:37]} 11. Re1 {[%clk 0:02:49]}  Bb4 {[%clk 0:02:38]} 12. Ba3 {[%clk 0:02:47]}  Qe7 {[%clk 0:02:28]} 13. Bxb4 {[%clk 0:02:43]}  Qxb4 {[%clk 0:02:28]} 14. Nf1 {[%clk 0:02:40]}  Nf4 {[%clk 0:02:23]} 15. c5 {[%clk 0:02:25]}  O-O {[%clk 0:02:10]} 16. Ne3 {[%clk 0:02:24]}  Nxe2+ {[%clk 0:02:10]} 17. Rxe2 {[%clk 0:02:25]}  b6 {[%clk 0:01:42]} 18. cxb6 {[%clk 0:02:22]}  Qxb6 {[%clk 0:01:28]} 19. Rb2 {[%clk 0:02:19]}  Rfc8 {[%clk 0:01:18]} 20. Qd2 {[%clk 0:02:18]}  c5 {[%clk 0:01:15]} 21. Re1 {[%clk 0:02:09]}  Rab8 {[%clk 0:01:15]} 22. Ng4 {[%clk 0:02:04]}  c4 {[%clk 0:01:10]} 23. Rc1 {[%clk 0:01:22]}  cxb3 {[%clk 0:00:58]} 24. h4 {[%clk 0:01:08]}  Rxc1+ {[%clk 0:00:53]} 25. Qxc1 {[%clk 0:01:08]}  Bc2 {[%clk 0:00:45]} 26. Ne3 {[%clk 0:01:00]}  Be4 {[%clk 0:00:40]} 27. Nd2 {[%clk 0:00:43]}  Qxd4 {[%clk 0:00:39]} 28. Rxb3 {[%clk 0:00:40]}  Rxb3 {[%clk 0:00:35]} 29. Nxb3 {[%clk 0:00:38]}  Qxa4 {[%clk 0:00:30]} 30. Nd2 {[%clk 0:00:34]}  Nxe5 {[%clk 0:00:24]} 31. Qc8+ {[%clk 0:00:31]}  Kh7 {[%clk 0:00:22]} 32. Qc7 {[%clk 0:00:24]}  Qc6 {[%clk 0:00:20]} 33. Qxa5 {[%clk 0:00:22]}  Qc1+ {[%clk 0:00:20]} 34. Kh2 {[%clk 0:00:22]}  Nd3 {[%clk 0:00:14]} 35. Nxe4 {[%clk 0:00:20]}  dxe4 {[%clk 0:00:15]} 36. Qa2 {[%clk 0:00:04]}  Qc5 {[%clk 0:00:12]} 37. Qd2 {[%clk 0:00:02]}  Qe5+ {[%clk 0:00:12]} 38. g3 {[%clk 0:00:02]}  f5 {[%clk 0:00:11]} 39. Ng2 {[%clk 0:00:02]}  Qd4 {[%clk 0:00:05]} 40. Kg1 {[%clk 0:00:01]}  e5 {[%clk 0:00:04]} 41. Qe3 {[%clk 0:00:02]}  Qxe3 {[%clk 0:00:04]} 42. Nxe3 {[%clk 0:00:03]}  g6 {[%clk 0:00:05]} 43. Nd5 {[%clk 0:00:03]}  Kg7 {[%clk 0:00:05]} 44. Nc7 {[%clk 0:00:04]}  Kf6 {[%clk 0:00:04]} 45. Kg2 {[%clk 0:00:04]}  g5 {[%clk 0:00:03]} 46. Nd5+ {[%clk 0:00:04]}  Ke6 {[%clk 0:00:04]} 47. Ne3 {[%clk 0:00:04]}  f4 {[%clk 0:00:03]} 48. Ng4 {[%clk 0:00:04]}  h5 {[%clk 0:00:02]} 49. Nh2 {[%clk 0:00:03]}  g4 {[%clk 0:00:02]} 50. Nf1 {[%clk 0:00:03]}  f3+ {[%clk 0:00:03]} 51. Kg1 {[%clk 0:00:04]}  Kd5 {[%clk 0:00:03]} 52. Ne3+ {[%clk 0:00:04]}  Ke6 {[%clk 0:00:03]} 53. Kf1 {[%clk 0:00:05]}  Nc1 {[%clk 0:00:02]} 54. Nc4 {[%clk 0:00:05]}  Nb3 {[%clk 0:00:02]} 55. Ne3 {[%clk 0:00:06]}  Nd4 {[%clk 0:00:02]} 56. Ke1 {[%clk 0:00:06]}  Ne2 {[%clk 0:00:02]} 57. Kf1 {[%clk 0:00:06]}  Nd4 {[%clk 0:00:02]} 58. Nc4 {[%clk 0:00:07]}  Nc6 {[%clk 0:00:02]} 59. Ne3 {[%clk 0:00:07]}  Ne7 {[%clk 0:00:03]} 60. Nc4 {[%clk 0:00:07]}  Nf5 {[%clk 0:00:04]} 61. Nb6 {[%clk 0:00:07]}  Kd6 {[%clk 0:00:04]} 62. Nc4+ {[%clk 0:00:07]}  Kd5 {[%clk 0:00:04]} 63. Nb6+ {[%clk 0:00:08]}  Kd4 {[%clk 0:00:04]} 64. Nd7 {[%clk 0:00:08]}  e3 {[%clk 0:00:04]} 65. Nf6 {[%clk 0:00:09]}  e2+ {[%clk 0:00:03]} 66. Ke1 {[%clk 0:00:08]}  Kc3 {[%clk 0:00:02]} 67. Ne4+ {[%clk 0:00:04]}  Kd3 {[%clk 0:00:02]} 68. Nc5+ {[%clk 0:00:04]}  Kc4 {[%clk 0:00:03]} 69. Nd3 {[%clk 0:00:02]}  Nd4 {[%clk 0:00:04]} 0-1


[Site "https://www.chess.com"]